fUST/lending_fUST_20240726
["ID","MTS","AMOUNT","RATE_DAILY","PERIOD"]
[333204135,1721944246698,-500.0,0.00013698,2]
[333204136,1721944246707,-500.0,0.00013698,2]
[333204137,1721944246717,-510.55045096,0.00013698,2]
[333204138,1721944246726,-500.0,0.00013698,2]
[333204139,1721944246736,-500.0,0.00013698,2]
[333204140,1721944246746,-500.0,0.00013698,2]
[333204141,1721944246756,-500.0,0.00013698,2]
[333204142,1721944246766,-500.0,0.00013698,2]
[333204143,1721944246778,-500.0,0.00013698,2]
[333204144,1721944246788,-500.0,0.00013698,2]
[333204145,1721944246799,-500.0,0.00013698,2]
[333204146,1721944246810,-500.0,0.00013698,2]
[333204147,1721944246819,-500.0,0.00013698,2]
[333204148,1721944246829,-500.0,0.00013698,2]
[333204149,1721944246839,-500.0,0.00013698,2]
[333204150,1721944246849,-500.0,0.00013698,2]
[333204151,1721944246861,-500.0,0.00013698,2]
[333204152,1721944246873,-562.44036248,0.00013698,2]
[333204153,1721944246885,-500.0,0.00013698,2]
[333204154,1721944246897,-500.0,0.00013698,2]
[333204155,1721944246907,-500.0,0.00013698,2]
[333204156,1721944246918,-500.0,0.00013698,2]
[333204157,1721944246929,-518.48427505,0.00013698,2]
[333204158,1721944246939,-500.0,0.00013698,2]
[333204159,1721944246949,-503.71708603,0.00013698,2]
[333204160,1721944246961,-500.0,0.00013698,2]
[333204161,1721944246972,-500.0,0.00013698,2]
[333204162,1721944246984,-500.0,0.00013698,2]
[333204163,1721944246994,-602.36606478,0.00013698,2]
[333204164,1721944247006,-500.0,0.00013698,2]
[333204165,1721944247017,-500.0,0.00013698,2]
[333204166,1721944247026,-524.52769654,0.00013698,2]
[333204167,1721944247036,-502.31656906,0.00013698,2]
[333204168,1721944247046,-500.0,0.00013698,2]
[333204169,1721944247057,-500.0,0.00013698,2]
[333204170,1721944247066,-500.0,0.00013698,2]
[333204171,1721944247076,-500.0,0.00013698,2]
[333204172,1721944247089,-500.0,0.00013698,2]
[333204173,1721944247099,-500.0,0.00013698,2]
[333204174,1721944247110,-500.0,0.00013698,2]
[333204175,1721944247121,-500.0,0.00013698,2]
[333204176,1721944247131,-500.0,0.00013698,2]
[333204177,1721944247140,-500.0,0.00013698,2]
[333204178,1721944247152,-500.0,0.00013698,2]
[333204179,1721944247162,-500.0,0.00013698,2]
[333204180,1721944247172,-500.0,0.00013698,2]
[333204181,1721944247182,-500.0,0.00013698,2]
[333204182,1721944247195,-500.0,0.00013698,2]
[333204183,1721944247206,-500.0,0.00013698,2]
[333204184,1721944247217,-500.0,0.00013698,2]
[333204185,1721944247229,-236.16681393,0.00013698,2]
[333204186,1721944248007,-263.83318607,0.00013698,2]
[333204187,1721944248140,-618.68,0.00013698,2]
[333204188,1721944248266,-500.12511869,0.00013698,2]
[333204189,1721944248354,-500.0,0.00013698,2]
[333204190,1721944248447,-506.7277851,0.00013698,2]
[333204191,1721944248545,-503.88456331,0.00013698,2]
[333204192,1721944248632,-500.0,0.00013698,2]
[333204193,1721944248709,-500.0,0.00013698,2]
[333204194,1721944248815,-500.0,0.00013698,2]
[333204195,1721944248829,-584.92984783,0.00013698,2]
[333204196,1721944248841,-500.0,0.00013698,2]
[333204197,1721944248853,-500.0,0.00013698,2]
[333204198,1721944248865,-500.0,0.00013698,2]
[333204199,1721944248875,-500.0,0.00013698,2]
[333204200,1721944248884,-500.0,0.00013698,2]
[333204201,1721944248895,-500.0,0.00013698,2]
[333204202,1721944248905,-21.819499,0.00013698,2]
[333204203,1721944308650,-392.26521948,9.999e-05,2]
[333204204,1721944360903,4320.046146,0.00027397,120]
[333204205,1721944360926,6249.953854,0.00027397,120]
[333204206,1721944384676,-19440.5755278,9.999e-05,2]
[333204207,1721944385239,0.046146,0.00027123,120]
[333204208,1721944385261,211.253854,0.00027123,120]
[333204209,1721944386671,-4707.90566682,9.999e-05,2]
[333204210,1721944557959,-244.0,0.00013,2]
[333204211,1721944581038,-239.87184714,0.00013,2]
[333204212,1721944591136,-7524.99453821,0.00013,2]
[333204213,1721944658072,-2825.9977085,0.00012517,2]
[333204214,1721944683052,-7524.99453821,0.00013,2]
[333204215,1721944774469,-7524.99453821,0.00013,2]
[333204271,1721945433280,-194.74554772,9.999e-05,2]
[333204273,1721945433290,-134.4176806,9.999e-05,2]
[333204274,1721945433302,-23.25271382,9.999e-05,2]
[333204275,1721945433312,-663.67519992,9.999e-05,2]
[333204277,1721945433322,-285.14370431,9.999e-05,2]
[333204279,1721945433332,-287.00275421,9.999e-05,2]
[333204280,1721945433342,-451.57750651,9.999e-05,2]
[333204281,1721945433361,-71.12163602,9.999e-05,2]
[333204282,1721945433371,-403.39616838,9.999e-05,2]
[333204283,1721945433381,-154.96701285,9.999e-05,2]
[333204284,1721945433392,-519.14870802,9.999e-05,2]
[333204285,1721945433402,-533.46933228,9.999e-05,2]
[333204286,1721945433412,-157.00321085,9.999e-05,2]
[333204287,1721945433423,-154.76012181,9.999e-05,2]
[333204288,1721945433432,-155.60380753,9.999e-05,2]
[333204289,1721945433442,-208.59187351,9.999e-05,2]
[333204290,1721945433452,-209.69045866,9.999e-05,2]
[333204291,1721945433462,-156.40691398,9.999e-05,2]
[333204292,1721945433472,-154.76012181,9.999e-05,2]
[333204293,1721945433482,-600.34409866,9.999e-05,2]
[333204294,1721945433491,-154.76012181,9.999e-05,2]
[333204295,1721945433501,-260.7346464,9.999e-05,2]
[333204296,1721945433511,-154.76012181,9.999e-05,2]
[333204297,1721945433521,-628.45453856,9.999e-05,2]
[333204298,1721945433531,-163.28779954,9.999e-05,2]
[333204299,1721945433541,-173.03012309,9.999e-05,2]
[333204300,1721945433551,-404.41023413,9.999e-05,2]
[333204301,1721945433563,-156.59792059,9.999e-05,2]
[333204302,1721945433573,-342.78895988,9.999e-05,2]
[333204303,1721945433583,-77.54713632,9.999e-05,2]
[333204321,1721945438218,-701.45231559,9.999e-05,2]
[333204322,1721945438227,-230.37770091,9.999e-05,2]
[333204323,1721945438239,-196.30125481,9.999e-05,2]
[333204324,1721945438250,-188.0737834,9.999e-05,2]
[333204325,1721945438262,-189.33829521,9.999e-05,2]
[333204326,1721945438272,-154.76012181,9.999e-05,2]
[333204327,1721945438283,-288.28494131,9.999e-05,2]
[333204328,1721945438296,-233.90882641,0.0001,2]
[333204329,1721945438307,-154.76012181,0.0001,2]
[333204330,1721945438317,-200.64020592,0.0001,2]
[333204331,1721945438328,-200.0,0.0001,2]
[333204332,1721945438338,-400.0,0.0001137,2]
[333204333,1721945438349,-1598.4020981,0.00011973,2]
[333204334,1721945438360,-165.618537,0.0001249,2]
[333204335,1721945438372,-165.618537,0.00012598,2]
[333204336,1721945438384,-165.618537,0.00012707,2]
[333204337,1721945438396,-165.618537,0.00012815,2]
[333204338,1721945438406,-457.64838399,0.000129,2]
[333204339,1721945438417,-165.618537,0.00012924,2]
[333204340,1721945438426,-7524.99453821,0.00013,2]
[333204341,1721945438436,-2107.09834524,0.00013,2]
[333204342,1721945438445,-218.4546097,0.00013,2]
[333204343,1721945438456,-1180.79074834,0.00013,2]
[333204344,1721945438466,-239.87184714,0.00013,2]
[333204345,1721945438476,-156.95300993,0.00013,2]
[333204346,1721945438486,-13902.82446901,0.00013,2]
[333204347,1721945438498,-644.57917452,0.00013,2]
[333204348,1721945438509,-165.618537,0.00013032,2]
[333204349,1721945438520,-165.618537,0.00013141,2]
[333204350,1721945438531,-400.0,0.00013147,2]
[333204351,1721945438543,-200.0,0.00013425,2]
[333204352,1721945438554,-483.64469068,0.0001359,2]
[333204353,1721945438564,-5306.88604622,0.00013621,2]
[333204354,1721945438579,-483.64469065,0.00013658,2]
[333204355,1721945438589,-2733.90464314,0.00013678,2]
[333204356,1721945438599,-1366.95232157,0.0001368,2]
[333204357,1721945438609,-3695.56209422,0.00013688,2]
[333204412,1721945441604,-4506.1518352,0.00013688,2]
[333204414,1721945441615,-1000.0,0.00013697,2]
[333204416,1721945441626,-228.22718863,0.00013698,2]
[333204419,1721945441636,-507.9354698,0.00013698,2]
[333204421,1721945441645,-500.0,0.00013698,2]
[333204423,1721945441656,-500.0,0.00013698,2]
[333204425,1721945441668,-500.0,0.00013698,2]
[333204427,1721945441680,-500.0,0.00013698,2]
[333204430,1721945441691,-500.0,0.00013698,2]
[333204432,1721945441702,-500.0,0.00013698,2]
[333204434,1721945441713,-500.0,0.00013698,2]
[333204436,1721945441725,-500.0,0.00013698,2]
[333204438,1721945441735,-508.27904689,0.00013698,2]
[333204441,1721945441745,-515.93642104,0.00013698,2]
[333204443,1721945441756,-500.0,0.00013698,2]
[333204445,1721945441768,-500.0,0.00013698,2]
[333204447,1721945441778,-500.0,0.00013698,2]
[333204449,1721945441789,-500.0,0.00013698,2]
[333204451,1721945441800,-500.0,0.00013698,2]
[333204454,1721945441810,-500.0,0.00013698,2]
[333204456,1721945441820,-154.74467129,0.00013698,2]
[333204458,1721945441830,-500.0,0.00013698,2]
[333204460,1721945441842,-500.0,0.00013698,2]
[333204462,1721945441852,-500.0,0.00013698,2]
[333204464,1721945441863,-892.18,0.00013698,2]
[333204466,1721945441872,-500.0,0.00013698,2]
[333204468,1721945441882,-500.0,0.00013698,2]
[333204470,1721945441894,-500.0,0.00013698,2]
[333204472,1721945441904,-500.0,0.00013698,2]
[333204475,1721945441915,-500.0,0.00013698,2]
[333204477,1721945441924,-500.0,0.00013698,2]
[333204479,1721945441933,-916.12,0.00013698,2]
[333204481,1721945441943,-530.46,0.00013698,2]
[333204483,1721945441953,-501.22756596,0.00013698,2]
[333204485,1721945441962,-500.0,0.00013698,2]
[333204487,1721945441972,-500.0,0.00013698,2]
[333204488,1721945441981,-500.0,0.00013698,2]
[333204490,1721945441990,-500.0,0.00013698,2]
[333204492,1721945442000,-500.0,0.00013698,2]
[333204495,1721945442009,-500.0,0.00013698,2]
[333204496,1721945442019,-1473.01,0.00013698,2]
[333204498,1721945442028,-184.28707715,0.00013698,2]
[333204501,1721945442041,-922.01292285,0.00013698,2]
[333204503,1721945442052,-500.0,0.00013698,2]
[333204505,1721945442061,-500.0,0.00013698,2]
[333204506,1721945442071,-500.0,0.00013698,2]
[333204508,1721945442081,-500.0,0.00013698,2]
[333204510,1721945442090,-500.0,0.00013698,2]
[333204512,1721945442099,-500.0,0.00013698,2]
[333204514,1721945442109,-500.0,0.00013698,2]
[333204517,1721945442120,-500.0,0.00013698,2]
[333204519,1721945442134,-500.0,0.00013698,2]
[333204521,1721945442145,-161.07046146,0.00013698,2]
[333204523,1721945442159,-338.92953854,0.00013698,2]
[333204525,1721945442170,-500.0,0.00013698,2]
[333204527,1721945442180,-500.0,0.00013698,2]
[333204529,1721945442191,-500.0,0.00013698,2]
[333204532,1721945442203,-500.0,0.00013698,2]
[333204534,1721945442213,-314.38537581,0.00013698,2]
[333204670,1721945443317,-185.61462419,0.00013698,2]
[333204672,1721945443327,-500.0,0.00013698,2]
[333204674,1721945443337,-912.26,0.00013698,2]
[333204676,1721945443347,-500.0,0.00013698,2]
[333204678,1721945443357,-520.97,0.00013698,2]
[333204680,1721945443368,-500.0,0.00013698,2]
[333204682,1721945443378,-500.0,0.00013698,2]
[333204684,1721945443388,-500.0,0.00013698,2]
[333204686,1721945443398,-371.33897993,0.00013698,2]
[333204689,1721945443410,-128.66102007,0.00013698,2]
[333204691,1721945443419,-500.0,0.00013698,2]
[333204693,1721945443430,-500.0,0.00013698,2]
[333204695,1721945443440,-500.0,0.00013698,2]
[333204697,1721945443450,-505.87608225,0.00013698,2]
[333204699,1721945443459,-500.0,0.00013698,2]
[333204701,1721945443469,-500.0,0.00013698,2]
[333204703,1721945443478,-500.0,0.00013698,2]
[333204705,1721945443488,-500.0,0.00013698,2]
[333204707,1721945443498,-500.0,0.00013698,2]
[333204709,1721945443508,-500.0,0.00013698,2]
[333204711,1721945443518,-500.0,0.00013698,2]
[333204713,1721945443528,-500.0,0.00013698,2]
[333204715,1721945443538,-500.0,0.00013698,2]
[333204717,1721945443548,-500.0,0.00013698,2]
[333204719,1721945443558,-521.44797603,0.00013698,2]
[333204721,1721945443568,-512.62,0.00013698,2]
[333204723,1721945443579,-500.0,0.00013698,2]
[333204725,1721945443588,-366.67266252,0.00013698,2]
[333205017,1721945446741,-133.32733748,0.00013698,2]
[333205019,1721945446752,-500.0,0.00013698,2]
[333205021,1721945446765,-500.0,0.00013698,2]
[333205023,1721945446777,-500.0,0.00013698,2]
[333205025,1721945446787,-500.0,0.00013698,2]
[333205027,1721945446798,-500.0,0.00013698,2]
[333205029,1721945446809,-500.0,0.00013698,2]
[333205031,1721945446820,-681.35,0.00013698,2]
[333205033,1721945446833,-500.0,0.00013698,2]
[333205035,1721945446845,-899.97,0.00013698,2]
[333205037,1721945446856,-500.0,0.00013698,2]
[333205038,1721945446866,-500.0,0.00013698,2]
[333205040,1721945446877,-500.0,0.00013698,2]
[333205042,1721945446888,-727.57,0.00013698,2]
[333205044,1721945446900,-500.0,0.00013698,2]
[333205046,1721945446911,-897.87,0.00013698,2]
[333205048,1721945446922,-590.26,0.00013698,2]
[333205050,1721945446933,-500.0,0.00013698,2]
[333205052,1721945446943,-500.0,0.00013698,2]
[333205054,1721945446954,-500.0,0.00013698,2]
[333205056,1721945446967,-500.0,0.00013698,2]
[333205058,1721945446978,-500.0,0.00013698,2]
[333205060,1721945446989,-500.0,0.00013698,2]
[333205062,1721945446999,-500.0,0.00013698,2]
[333205063,1721945447008,-550.23151362,0.00013698,2]
[333205065,1721945447018,-500.0,0.00013698,2]
[333205067,1721945447027,-500.0,0.00013698,2]
[333205069,1721945447037,-500.0,0.00013698,2]
[333205071,1721945447047,-523.12194155,0.00013698,2]
[333205073,1721945447057,-500.0,0.00013698,2]
[333205074,1721945447067,-862.77,0.00013698,2]
[333205076,1721945447077,-500.0,0.00013698,2]
[333205078,1721945447087,-500.0,0.00013698,2]
[333205080,1721945447097,-387.25778253,0.00013698,2]
[333205082,1721945447107,-500.0,0.00013698,2]
[333205084,1721945447116,-500.0,0.00013698,2]
[333205086,1721945447128,-500.0,0.00013698,2]
[333205087,1721945447139,-519.42046231,0.00013698,2]
[333205089,1721945447149,-500.0,0.00013698,2]
[333205091,1721945447158,-500.0,0.00013698,2]
[333205093,1721945447167,-500.0,0.00013698,2]
[333205094,1721945447178,-884.18,0.00013698,2]
[333205096,1721945447189,-501.77381646,0.00013698,2]
[333205098,1721945447198,-500.0,0.00013698,2]
[333205100,1721945447209,-500.0,0.00013698,2]
[333205102,1721945447220,-519.61993245,0.00013698,2]
[333205104,1721945447230,-504.50703315,0.00013698,2]
[333205105,1721945447240,-500.0,0.00013698,2]
[333205107,1721945447250,-531.11048598,0.00013698,2]
[333205109,1721945447260,-318.30549013,0.00013698,2]
[333205111,1721945447270,-500.0,0.00013698,2]
[333205113,1721945447279,-500.03043161,0.00013698,2]
[333205114,1721945447288,-500.0,0.00013698,2]
[333205116,1721945447298,-500.0,0.00013698,2]
[333205118,1721945447308,-500.0,0.00013698,2]
[333205120,1721945447317,-500.0,0.00013698,2]
[333205122,1721945447326,-500.0,0.00013698,2]
[333205123,1721945447336,-590.17,0.00013698,2]
[333205125,1721945447347,-500.0,0.00013698,2]
[333205127,1721945447356,-502.14058153,0.00013698,2]
[333205129,1721945447366,-500.0,0.00013698,2]
[333205131,1721945447377,-519.83,0.00013698,2]
[333205133,1721945447389,-596.62,0.00013698,2]
[333205135,1721945447399,-500.0,0.00013698,2]
[333205137,1721945447410,-500.0,0.00013698,2]
[333205139,1721945447420,-500.0,0.00013698,2]
[333205141,1721945447432,-502.63022932,0.00013698,2]
[333205143,1721945447442,-666.68,0.00013698,2]
[333205144,1721945447454,-500.0,0.00013698,2]
[333205146,1721945447464,-500.0,0.00013698,2]
[333205148,1721945447474,-500.0,0.00013698,2]
[333205150,1721945447486,-500.0,0.00013698,2]
[333205152,1721945447497,-500.0,0.00013698,2]
[333205154,1721945447507,-1042.56,0.00013698,2]
[333205156,1721945447518,-500.0,0.00013698,2]
[333205158,1721945447528,-500.0,0.00013698,2]
[333205160,1721945447539,-390.73947296,0.00013698,2]
[333205162,1721945447549,-636.57053921,0.00013698,2]
[333205163,1721945447559,-500.0,0.00013698,2]
[333205165,1721945447569,-500.0,0.00013698,2]
[333205167,1721945447579,-651.1,0.00013698,2]
[333205169,1721945447589,-500.0,0.00013698,2]
[333205171,1721945447601,-552.97,0.00013698,2]
[333205172,1721945447611,-385.16207719,0.00013698,2]
[333205174,1721945447621,-500.0,0.00013698,2]
[333205176,1721945447631,-500.0,0.00013698,2]
[333205177,1721945447641,-500.0,0.00013698,2]
[333205179,1721945447651,-500.0,0.00013698,2]
[333205181,1721945447662,-500.0,0.00013698,2]
[333205183,1721945447672,-500.0,0.00013698,2]
[333205185,1721945447681,-500.0,0.00013698,2]
[333205186,1721945447691,-500.0,0.00013698,2]
[333205188,1721945447701,-500.0,0.00013698,2]
[333205190,1721945447710,-500.0,0.00013698,2]
[333205192,1721945447722,-500.0,0.00013698,2]
[333205194,1721945447732,-500.0,0.00013698,2]
[333205195,1721945447742,-500.0,0.00013698,2]
[333205197,1721945447752,-500.0,0.00013698,2]
[333205199,1721945447762,-907.58,0.00013698,2]
[333205201,1721945447772,-500.0,0.00013698,2]
[333205203,1721945447782,-630.47,0.00013698,2]
[333205204,1721945447793,-500.0,0.00013698,2]
[333205206,1721945447802,-772.51,0.00013698,2]
[333205208,1721945447811,-500.97595616,0.00013698,2]
[333205210,1721945447822,-822.02,0.00013698,2]
[333205212,1721945447831,-500.0,0.00013698,2]
[333205214,1721945447842,-500.0,0.00013698,2]
[333205215,1721945447851,-830.39,0.00013698,2]
[333205217,1721945447862,-500.0,0.00013698,2]
[333205219,1721945447871,-500.0,0.00013698,2]
[333205221,1721945447881,-500.0,0.00013698,2]
[333205223,1721945447891,-500.0,0.00013698,2]
[333205225,1721945447902,-500.0,0.00013698,2]
[333205227,1721945447911,-959.06,0.00013698,2]
[333205229,1721945447921,-1181.09,0.00013698,2]
[333205231,1721945447931,-647.51,0.00013698,2]
[333205233,1721945447940,-500.0,0.00013698,2]
[333205235,1721945447950,-500.0,0.00013698,2]
[333205237,1721945447960,-500.0,0.00013698,2]
[333205239,1721945447970,-605.62,0.00013698,2]
[333205241,1721945447979,-500.0,0.00013698,2]
[333205243,1721945447989,-500.0,0.00013698,2]
[333205245,1721945448000,-500.0,0.00013698,2]
[333205247,1721945448011,-813.13,0.00013698,2]
[333205249,1721945448021,-500.0,0.00013698,2]
[333205250,1721945448030,-570.7599877,0.00013698,2]
[333205251,1721945448040,-762.69,0.00013698,2]
[333205252,1721945448051,-500.0,0.00013698,2]
[333205253,1721945448061,-224.1136796,0.00013698,2]
[333205254,1721945448071,-203.93690796,0.00013698,2]
[333205255,1721945448080,-500.0,0.00013698,2]
[333205256,1721945448090,-500.0,0.00013698,2]
[333205257,1721945448099,-1776.34,0.00013698,2]
[333205258,1721945448109,-711.93,0.00013698,2]
[333205259,1721945448119,-2090.35,0.00013698,2]
[333205260,1721945448134,-513.02,0.00013698,2]
[333205261,1721945448143,-500.0,0.00013698,2]
[333205262,1721945448153,-640.47,0.00013698,2]
[333205263,1721945448163,-1363.08,0.00013698,2]
[333205264,1721945448174,-500.0,0.00013698,2]
[333205265,1721945448183,-500.0,0.00013698,2]
[333205266,1721945448193,-749.02,0.00013698,2]
[333205267,1721945448203,-837.67,0.00013698,2]
[333205268,1721945448213,-500.0,0.00013698,2]
[333205269,1721945448225,-500.0,0.00013698,2]
[333205270,1721945448235,-557.37,0.00013698,2]
[333205271,1721945448245,-1423.68,0.00013698,2]
[333205272,1721945448255,-500.0,0.00013698,2]
[333205273,1721945448264,-1550.72,0.00013698,2]
[333205274,1721945448274,-500.0,0.00013698,2]
[333205275,1721945448284,-500.0,0.00013698,2]
[333205276,1721945448294,-500.0,0.00013698,2]
[333205278,1721945448304,-1337.03,0.00013698,2]
[333205279,1721945448315,-1300.32,0.00013698,2]
[333205280,1721945448325,-1889.86,0.00013698,2]
[333205282,1721945448335,-592.9,0.00013698,2]
[333205283,1721945448345,-728.51,0.00013698,2]
[333205285,1721945448355,-500.0,0.00013698,2]
[333205287,1721945448365,-1211.56,0.00013698,2]
[333205289,1721945448374,-569.06,0.00013698,2]
[333205291,1721945448387,-500.0,0.00013698,2]
[333205293,1721945448397,-2017.66,0.00013698,2]
[333205295,1721945448408,-500.0,0.00013698,2]
[333205297,1721945448418,-500.0,0.00013698,2]
[333205299,1721945448427,-500.0,0.00013698,2]
[333205301,1721945448438,-561.87823279,0.00013698,2]
[333205303,1721945448450,-672.46,0.00013698,2]
[333205306,1721945448460,-500.0,0.00013698,2]
[333205308,1721945448471,-783.95,0.00013698,2]
[333205310,1721945448481,-500.0,0.00013698,2]
[333205312,1721945448491,-500.0,0.00013698,2]
[333205314,1721945448501,-1255.44,0.00013698,2]
[333205316,1721945448511,-500.0,0.00013698,2]
[333205318,1721945448522,-500.0,0.00013698,2]
[333205320,1721945448532,-510.76347615,0.00013698,2]
[333205322,1721945448542,-7516.11,0.00013698,2]
[333205324,1721945448552,-500.0,0.00013698,2]
[333205326,1721945448562,-500.0,0.00013698,2]
[333205328,1721945448573,-490.24776357,0.00013698,2]
[333205330,1721945448582,-1200.13,0.00013698,2]
[333205332,1721945448592,-500.0,0.00013698,2]
[333205334,1721945448601,-500.0,0.00013698,2]
[333205336,1721945448611,-775.57,0.00013698,2]
[333205338,1721945448621,-1047.27,0.00013698,2]
[333205340,1721945448632,-500.0,0.00013698,2]
[333205342,1721945448642,-500.0,0.00013698,2]
[333205345,1721945448652,-3197.53,0.00013698,2]
[333205347,1721945448662,-349.80289992,0.00013698,2]
[333205349,1721945448674,-6254.24,0.00013698,2]
[333205351,1721945448684,-235.63874144,0.00013698,2]
[333205353,1721945448694,-500.0,0.00013698,2]
[333205355,1721945448704,-600.78,0.00013698,2]
[333205357,1721945448714,-522.22778828,0.00013698,2]
[333205359,1721945448725,-1208.53,0.00013698,2]
[333205361,1721945448735,-500.0,0.00013698,2]
[333205363,1721945448745,-373.74386389,0.00013698,2]
[333205365,1721945448755,-500.0,0.00013698,2]
[333205367,1721945448765,-1415.47,0.00013698,2]
[333205369,1721945448775,-500.0,0.00013698,2]
[333205371,1721945448785,-790.86,0.00013698,2]
[333205373,1721945448795,-500.0,0.00013698,2]
[333205375,1721945448807,-500.24,0.00013698,2]
[333205377,1721945448817,-500.0,0.00013698,2]
[333205379,1721945448826,-500.0,0.00013698,2]
[333205381,1721945448836,-500.0,0.00013698,2]
[333205383,1721945448846,-500.0,0.00013698,2]
[333205385,1721945448856,-500.0,0.00013698,2]
[333205387,1721945448867,-646.26,0.00013698,2]
[333205389,1721945448877,-3494.46,0.00013698,2]
[333205391,1721945448887,-5135.23,0.00013698,2]
[333205393,1721945448897,-500.0,0.00013698,2]
[333205395,1721945448907,-1317.34,0.00013698,2]
[333205397,1721945448917,-500.0,0.00013698,2]
[333205399,1721945448927,-1128.16,0.00013698,2]
[333205401,1721945448936,-305.64838923,0.00013698,2]
[333205403,1721945448946,-500.0,0.00013698,2]
[333205405,1721945448957,-500.0,0.00013698,2]
[333205408,1721945448967,-500.0,0.00013698,2]
[333205410,1721945448977,-500.0,0.00013698,2]
[333205412,1721945448987,-500.0,0.00013698,2]
[333205414,1721945448998,-686.92,0.00013698,2]
[333205416,1721945449008,-500.0,0.00013698,2]
[333205418,1721945449019,-840.42,0.00013698,2]
[333205420,1721945449029,-1149.58,0.00013698,2]
[333205422,1721945449040,-500.0,0.00013698,2]
[333205424,1721945449050,-798.49,0.00013698,2]
[333205426,1721945449060,-694.05,0.00013698,2]
[333205428,1721945449071,-1023.44,0.00013698,2]
[333205430,1721945449081,-647.23,0.00013698,2]
[333205432,1721945449092,-1.1493862,0.00013698,2]
[333206763,1721946416116,-300.0,9.998e-05,2]
[333206764,1721946416141,-0.0130815,9.999e-05,2]
[333206771,1721946496297,-154.76012181,9.999e-05,2]
[333206773,1721946570571,-2.38263829,9.999e-05,2]
[333206774,1721946570597,-154.76012181,9.999e-05,2]
[333206775,1721946570620,-154.76012181,9.999e-05,2]
[333206776,1721946570645,-157.67039442,9.999e-05,2]
[333206777,1721946570669,-73.28336271,9.999e-05,2]
[333206778,1721946571675,-494.80085248,9.999e-05,2]
[333206780,1721946580217,-188.0737834,9.999e-05,2]
[333206781,1721946587572,-331.07492462,9.999e-05,2]
[333206782,1721946595384,-154.76012181,9.999e-05,2]
[333206783,1721946596255,0.038287,0.00013,120]
[333206784,1721946596285,244.11034214,0.00013,120]
[333206785,1721946596586,-624.2393301,9.999e-05,2]
[333206812,1721946633569,-663.67519992,9.999e-05,2]
[333206814,1721946633580,-208.59187351,9.999e-05,2]
[333206816,1721946633591,-154.91439416,9.999e-05,2]
[333206818,1721946633602,-307.96860938,9.999e-05,2]
[333206820,1721946633612,-288.28494131,9.999e-05,2]
[333206822,1721946633622,-266.54187982,9.999e-05,2]
[333206823,1721946633632,-432.12224137,9.999e-05,2]
[333206824,1721946633642,-328.29059852,9.999e-05,2]
[333206825,1721946633652,-496.5675832,9.999e-05,2]
[333206826,1721946633662,-209.96596802,9.999e-05,2]
[333206827,1721946633672,-1699.19579432,9.999e-05,2]
[333206828,1721946633683,-154.76012181,9.999e-05,2]
[333206829,1721946633694,-154.76012181,9.999e-05,2]
[333206830,1721946633704,-542.85663904,9.999e-05,2]
[333206831,1721946633715,-188.0737834,9.999e-05,2]
[333206832,1721946633725,-154.76012181,9.999e-05,2]
[333206833,1721946633735,-154.76012181,0.0001,2]
[333206834,1721946633745,-205.998322,0.0001212,2]
[333206835,1721946633755,-568.08421519,0.0001212,2]
[333206836,1721946633765,-182.55785908,0.0001212,2]